[Event "Late-Titled-Tuesday-Blitz-February-13-2024"]
[Site "Chess.com"]
[Date "2024.02.13"]
[Round "5"]
[White "Durarbayli"]
[Black "Jospem"]
[Result "1-0"]
[WhiteElo "2941"]
[BlackElo "3030"]
[TimeControl "180+1"]
[EndTime "14:55:42 PST"]
[Termination "Durarbayli won by resignation"]

1. e4 {[%clk 0:03:00.9]} 1... c5 {[%clk 0:03:00.2]} 2. Nf3 {[%clk 0:03:00.6]}
2... d6 {[%clk 0:03:00.9]} 3. d4 {[%clk 0:03:00.2]} 3... cxd4 {[%clk 0:03:01.8]}
4. Nxd4 {[%clk 0:03:00.6]} 4... a6 {[%clk 0:03:02.7]} 5. c4 {[%clk 0:03:00.6]}
5... e6 {[%clk 0:03:03.3]} 6. Nc3 {[%clk 0:03:00.5]} 6... Nf6 {[%clk 0:03:04.1]}
7. Be2 {[%clk 0:02:55.4]} 7... b6 {[%clk 0:03:02.3]} 8. Be3 {[%clk 0:02:54.6]}
8... Bb7 {[%clk 0:03:02.2]} 9. Qc2 {[%clk 0:02:54.9]} 9... Nbd7 {[%clk 0:03:00]}
10. g4 {[%clk 0:02:52.6]} 10... h6 {[%clk 0:02:49.1]} 11. h4 {[%clk 0:02:51.5]}
11... Rc8 {[%clk 0:02:48.5]} 12. O-O-O {[%clk 0:02:45.3]} 12... Ne5 {[%clk
0:02:41.8]} 13. g5 {[%clk 0:02:42.9]} 13... Nfg4 {[%clk 0:02:37.4]} 14. g6
{[%clk 0:02:05.2]} 14... Qf6 {[%clk 0:02:20.4]} 15. Qa4+ {[%clk 0:01:50.5]}
15... Ke7 {[%clk 0:02:07.2]} 16. Nd5+ {[%clk 0:01:37.3]} 16... exd5 {[%clk
0:00:50.1]} 17. Nf5+ {[%clk 0:01:34.9]} 17... Kd8 {[%clk 0:00:33.6]} 18. Bxb6+
{[%clk 0:01:32.4]} 18... Rc7 {[%clk 0:00:34]} 19. Qa5 {[%clk 0:01:15.8]} 19...
Kc8 {[%clk 0:00:34.3]} 20. Bxc7 {[%clk 0:01:04]} 20... fxg6 {[%clk 0:00:34.7]}
21. cxd5 {[%clk 0:00:42.9]} 21... Nxf2 {[%clk 0:00:17.2]} 22. Kb1 {[%clk
0:00:34]} 22... Nxe4 {[%clk 0:00:17.7]} 23. Bxa6 {[%clk 0:00:29.9]} 23... Bxa6
{[%clk 0:00:09.1]} 24. Qxa6+ {[%clk 0:00:30.3]} 24... Kxc7 {[%clk 0:00:09.8]}
25. Nd4 {[%clk 0:00:30.5]} 25... Nc5 {[%clk 0:00:08.6]} 26. Qa7+ {[%clk
0:00:25.8]} 26... Kd8 {[%clk 0:00:07.7]} 27. Rhe1 {[%clk 0:00:15.9]} 27... Be7
{[%clk 0:00:04.8]} 28. Nc6+ {[%clk 0:00:14.8]} 28... Ke8 {[%clk 0:00:04.5]} 29.
Qb8+ {[%clk 0:00:11]} 29... Kd7 {[%clk 0:00:05]} 30. Qxh8 {[%clk 0:00:11.1]}
30... Bf8 {[%clk 0:00:04.6]} 31. Nxe5+ {[%clk 0:00:10.8]} 31... dxe5 {[%clk
0:00:05.5]} 32. Rf1 {[%clk 0:00:11.1]} 32... Qxh4 {[%clk 0:00:02.5]} 33. Qxf8
{[%clk 0:00:11.5]} 33... Qe4+ {[%clk 0:00:03]} 34. Ka1 {[%clk 0:00:11.7]} 34...
Nb3+ {[%clk 0:00:03.9]} 35. axb3 {[%clk 0:00:12.1]} 1-0

[Event "Late-Titled-Tuesday-Blitz-February-13-2024"]
[Site "Chess.com"]
[Date "2024.02.13"]
[Round "5"]
[White "terrortoast"]
[Black "ansko1999"]
[Result "0-1"]
[WhiteElo "2466"]
[BlackElo "2639"]
[TimeControl "180+1"]
[EndTime "14:55:43 PST"]
[Termination "ansko1999 won on time"]

1. d4 {[%clk 0:03:00.9]} 1... Nf6 {[%clk 0:02:59.7]} 2. c4 {[%clk 0:03:00.7]}
2... e6 {[%clk 0:03:00]} 3. Nc3 {[%clk 0:03:01.2]} 3... d5 {[%clk 0:02:59.4]} 4.
cxd5 {[%clk 0:03:02.1]} 4... exd5 {[%clk 0:02:59.5]} 5. Bg5 {[%clk 0:03:02.1]}
5... c6 {[%clk 0:02:54.3]} 6. e3 {[%clk 0:03:00]} 6... h6 {[%clk 0:02:53.6]} 7.
Bh4 {[%clk 0:03:00]} 7... Bd6 {[%clk 0:02:53.4]} 8. Bd3 {[%clk 0:02:57.7]} 8...
Nbd7 {[%clk 0:02:51.8]} 9. Nge2 {[%clk 0:02:54.4]} 9... Nf8 {[%clk 0:02:51.5]}
10. Qc2 {[%clk 0:02:49.6]} 10... Ne6 {[%clk 0:02:50.8]} 11. O-O-O {[%clk
0:02:47]} 11... Bd7 {[%clk 0:02:46.6]} 12. Ng3 {[%clk 0:02:32.8]} 12... Ng5
{[%clk 0:02:26.9]} 13. f4 {[%clk 0:02:18.5]} 13... Ne6 {[%clk 0:02:12.5]} 14.
Nf5 {[%clk 0:02:14.4]} 14... Bf8 {[%clk 0:02:11.3]} 15. e4 {[%clk 0:01:59.7]}
15... Nxf4 {[%clk 0:01:40.7]} 16. exd5 {[%clk 0:01:33.2]} 16... Nxd3+ {[%clk
0:01:29]} 17. Qxd3 {[%clk 0:01:32.4]} 17... cxd5 {[%clk 0:01:26.6]} 18. Rhe1+
{[%clk 0:00:59.9]} 18... Be6 {[%clk 0:01:26.2]} 19. Qg3 {[%clk 0:00:14.6]} 19...
g5 {[%clk 0:01:07.9]} 20. Bxg5 {[%clk 0:00:12.2]} 20... hxg5 {[%clk 0:01:08.8]}
21. Qxg5 {[%clk 0:00:12.6]} 21... Kd7 {[%clk 0:00:45.8]} 22. Rf1 {[%clk
0:00:05.6]} 22... Rc8 {[%clk 0:00:33.6]} 23. Ne3 {[%clk 0:00:05.5]} 23... Bh6
{[%clk 0:00:22.4]} 24. Qg3 {[%clk 0:00:04]} 24... Ne4 {[%clk 0:00:20.6]} 25. Qe1
{[%clk 0:00:02.4]} 25... Nxc3 {[%clk 0:00:19.1]} 26. bxc3 {[%clk 0:00:03.3]}
26... Qa5 {[%clk 0:00:18.6]} 27. Kb2 {[%clk 0:00:03.5]} 27... Rc6 {[%clk
0:00:15.9]} 28. Nc2 {[%clk 0:00:03.1]} 28... Rhc8 {[%clk 0:00:14]} 29. Rf3
{[%clk 0:00:02.6]} 29... Bf8 {[%clk 0:00:13.3]} 30. Qf2 {[%clk 0:00:01.6]} 30...
Rxc3 {[%clk 0:00:11.1]} 31. Re1 {[%clk 0:00:01.1]} 31... Rxc2+ {[%clk
0:00:10.5]} 32. Qxc2 {[%clk 0:00:01.5]} 32... Rxc2+ {[%clk 0:00:11.4]} 33. Kxc2
{[%clk 0:00:02.4]} 33... Qxe1 {[%clk 0:00:11.9]} 0-1

[Event "Late-Titled-Tuesday-Blitz-February-13-2024"]
[Site "Chess.com"]
[Date "2024.02.13"]
[Round "5"]
[White "Shankland"]
[Black "FMJoseHerrera"]
[Result "1-0"]
[WhiteElo "2944"]
[BlackElo "2705"]
[TimeControl "180+1"]
[EndTime "14:55:46 PST"]
[Termination "Shankland won on time"]

1. Nf3 {[%clk 0:02:58.1]} 1... Nf6 {[%clk 0:02:59.3]} 2. g3 {[%clk 0:02:58.5]}
2... b6 {[%clk 0:02:58.8]} 3. b3 {[%clk 0:02:58.6]} 3... Bb7 {[%clk 0:02:59.2]}
4. Bb2 {[%clk 0:02:59.2]} 4... c5 {[%clk 0:02:59.7]} 5. Bg2 {[%clk 0:02:58.2]}
5... e6 {[%clk 0:03:00.2]} 6. O-O {[%clk 0:02:57.9]} 6... Be7 {[%clk 0:03:00.6]}
7. c4 {[%clk 0:02:58.1]} 7... O-O {[%clk 0:03:00.5]} 8. Nc3 {[%clk 0:02:58.3]}
8... d6 {[%clk 0:03:00.4]} 9. Re1 {[%clk 0:02:57.7]} 9... Nbd7 {[%clk
0:03:00.5]} 10. e4 {[%clk 0:02:57.9]} 10... a6 {[%clk 0:03:01]} 11. d4 {[%clk
0:02:58.1]} 11... cxd4 {[%clk 0:03:01.9]} 12. Nxd4 {[%clk 0:02:58.7]} 12... Qc7
{[%clk 0:03:02.3]} 13. Rc1 {[%clk 0:02:58.4]} 13... Rac8 {[%clk 0:03:01.5]} 14.
f4 {[%clk 0:02:54.1]} 14... Qb8 {[%clk 0:03:00.5]} 15. g4 {[%clk 0:02:47.5]}
15... g6 {[%clk 0:02:55.9]} 16. h3 {[%clk 0:02:36.3]} 16... Qa8 {[%clk
0:02:51.2]} 17. Qe2 {[%clk 0:02:29.9]} 17... e5 {[%clk 0:02:33.2]} 18. fxe5
{[%clk 0:02:20.3]} 18... dxe5 {[%clk 0:02:32.6]} 19. Nc2 {[%clk 0:02:20]} 19...
Rfe8 {[%clk 0:02:04.3]} 20. Ne3 {[%clk 0:02:15.9]} 20... Nxe4 {[%clk 0:01:44.7]}
21. Nxe4 {[%clk 0:02:15.2]} 21... Bxe4 {[%clk 0:01:44]} 22. Nd5 {[%clk
0:02:15.9]} 22... Bc5+ {[%clk 0:01:41.2]} 23. Kh2 {[%clk 0:02:15.4]} 23... Bxg2
{[%clk 0:01:39.1]} 24. Qxg2 {[%clk 0:02:16]} 24... Qb8 {[%clk 0:01:33.4]} 25.
Rcd1 {[%clk 0:02:15.6]} 25... Bd4 {[%clk 0:01:27.2]} 26. Bxd4 {[%clk 0:01:44.7]}
26... exd4+ {[%clk 0:01:26.4]} 27. Qg3 {[%clk 0:01:45.3]} 27... Qxg3+ {[%clk
0:01:16.3]} 28. Kxg3 {[%clk 0:01:46.2]} 28... Rxe1 {[%clk 0:01:17]} 29. Rxe1
{[%clk 0:01:45.6]} 29... Kg7 {[%clk 0:00:56.8]} 30. Rd1 {[%clk 0:01:44.3]} 30...
b5 {[%clk 0:00:56.6]} 31. cxb5 {[%clk 0:01:40.1]} 31... axb5 {[%clk 0:00:57.5]}
32. Rxd4 {[%clk 0:01:40.2]} 32... Rc2 {[%clk 0:00:55.3]} 33. Nb4 {[%clk
0:01:39.7]} 33... Rc7 {[%clk 0:00:52.8]} 34. Rd5 {[%clk 0:01:39.1]} 34... Rc3+
{[%clk 0:00:48.4]} 35. Rd3 {[%clk 0:01:37.4]} 35... Rc7 {[%clk 0:00:47.6]} 36.
Nd5 {[%clk 0:01:32.7]} 36... Ra7 {[%clk 0:00:46.8]} 37. Rd2 {[%clk 0:01:27.1]}
37... Nc5 {[%clk 0:00:45.6]} 38. Kf4 {[%clk 0:01:25.2]} 38... Rd7 {[%clk
0:00:38.1]} 39. Ke3 {[%clk 0:01:23.8]} 39... Ne6 {[%clk 0:00:31.4]} 40. Nc3
{[%clk 0:01:19.6]} 40... Rb7 {[%clk 0:00:28.8]} 41. b4 {[%clk 0:01:18.2]} 41...
Ra7 {[%clk 0:00:15.7]} 42. Nxb5 {[%clk 0:01:14.7]} 42... Ra4 {[%clk 0:00:16.3]}
43. a3 {[%clk 0:01:14.8]} 43... f5 {[%clk 0:00:16.5]} 44. gxf5 {[%clk
0:01:12.8]} 44... gxf5 {[%clk 0:00:17.4]} 45. Kd3 {[%clk 0:01:12.7]} 45... Kf6
{[%clk 0:00:17.6]} 46. Kc4 {[%clk 0:01:12.5]} 46... Ra8 {[%clk 0:00:17]} 47. Kb3
{[%clk 0:01:07.3]} 47... Ke5 {[%clk 0:00:17.3]} 48. Re2+ {[%clk 0:01:06.9]}
48... Kf6 {[%clk 0:00:16.7]} 49. Rxe6+ {[%clk 0:01:04.8]} 49... Kxe6 {[%clk
0:00:17.1]} 50. Nc7+ {[%clk 0:01:05.5]} 50... Ke5 {[%clk 0:00:17.5]} 51. Nxa8
{[%clk 0:01:06.1]} 51... Kd4 {[%clk 0:00:17.3]} 52. Kc2 {[%clk 0:01:04.8]} 52...
Ke3 {[%clk 0:00:15.7]} 53. Nc7 {[%clk 0:01:04.4]} 1-0

[Event "Late-Titled-Tuesday-Blitz-February-13-2024"]
[Site "Chess.com"]
[Date "2024.02.13"]
[Round "5"]
[White "FairChess_on_YouTube"]
[Black "BilodeauA"]
[Result "0-1"]
[WhiteElo "3081"]
[BlackElo "2965"]
[TimeControl "180+1"]
[EndTime "14:55:48 PST"]
[Termination "BilodeauA won on time"]

1. e4 {[%clk 0:03:00.9]} 1... e5 {[%clk 0:02:59.8]} 2. Nf3 {[%clk 0:02:58.3]}
2... Nc6 {[%clk 0:03:00.2]} 3. d4 {[%clk 0:02:58.2]} 3... exd4 {[%clk
0:03:00.1]} 4. Nxd4 {[%clk 0:02:59.1]} 4... Bc5 {[%clk 0:02:57.2]} 5. Be3 {[%clk
0:02:57.3]} 5... Qf6 {[%clk 0:02:52.8]} 6. c3 {[%clk 0:02:57.5]} 6... Nge7
{[%clk 0:02:44.7]} 7. Bb5 {[%clk 0:02:57.7]} 7... Bb6 {[%clk 0:02:42.7]} 8. O-O
{[%clk 0:02:55.6]} 8... O-O {[%clk 0:02:39.8]} 9. a4 {[%clk 0:02:55.7]} 9... a5
{[%clk 0:02:30.1]} 10. Re1 {[%clk 0:02:12.8]} 10... d5 {[%clk 0:02:15.9]} 11.
Nxc6 {[%clk 0:02:11.4]} 11... bxc6 {[%clk 0:02:11.7]} 12. Bd3 {[%clk 0:01:58.9]}
12... Bxe3 {[%clk 0:01:53.1]} 13. Rxe3 {[%clk 0:01:59.8]} 13... Ng6 {[%clk
0:01:49.7]} 14. Nd2 {[%clk 0:01:56]} 14... Be6 {[%clk 0:01:44.4]} 15. e5 {[%clk
0:01:44.8]} 15... Qe7 {[%clk 0:01:42]} 16. Qh5 {[%clk 0:01:41.7]} 16... Rab8
{[%clk 0:01:27.8]} 17. b3 {[%clk 0:01:33.4]} 17... f5 {[%clk 0:01:12.3]} 18.
exf6 {[%clk 0:01:29.3]} 18... Qxf6 {[%clk 0:01:04.9]} 19. Nf3 {[%clk 0:01:20.6]}
19... Bf5 {[%clk 0:00:49.4]} 20. Bxf5 {[%clk 0:00:51.5]} 20... Qxf5 {[%clk
0:00:49.8]} 21. Qxf5 {[%clk 0:00:49.9]} 21... Rxf5 {[%clk 0:00:50.7]} 22. b4
{[%clk 0:00:33.8]} 22... axb4 {[%clk 0:00:33.4]} 23. cxb4 {[%clk 0:00:34.7]}
23... Rf4 {[%clk 0:00:34.2]} 24. Rb3 {[%clk 0:00:17.1]} 24... c5 {[%clk
0:00:34.5]} 25. b5 {[%clk 0:00:15.5]} 25... c4 {[%clk 0:00:34]} 26. Rbb1 {[%clk
0:00:12]} 26... d4 {[%clk 0:00:28.3]} 27. a5 {[%clk 0:00:11.3]} 27... d3 {[%clk
0:00:26.3]} 28. Rb4 {[%clk 0:00:04.6]} 28... c3 {[%clk 0:00:23.4]} 29. Rb3
{[%clk 0:00:04]} 29... Rc4 {[%clk 0:00:20.5]} 30. a6 {[%clk 0:00:03.5]} 30...
Nf4 {[%clk 0:00:16.9]} 31. a7 {[%clk 0:00:03.4]} 31... Ra8 {[%clk 0:00:17.2]}
32. Kf1 {[%clk 0:00:03.6]} 32... c2 {[%clk 0:00:15.7]} 33. Rc1 {[%clk
0:00:02.9]} 33... Ne2 {[%clk 0:00:16.4]} 34. Nd2 {[%clk 0:00:01.9]} 34... Nxc1
{[%clk 0:00:17]} 35. Ra3 {[%clk 0:00:01.7]} 35... Ne2 {[%clk 0:00:15.6]} 0-1

[Event "Late-Titled-Tuesday-Blitz-February-13-2024"]
[Site "Chess.com"]
[Date "2024.02.13"]
[Round "5"]
[White "KorolDimitriy75"]
[Black "nitpicker"]
[Result "1-0"]
[WhiteElo "2427"]
[BlackElo "2244"]
[TimeControl "180+1"]
[EndTime "14:55:48 PST"]
[Termination "KorolDimitriy75 won on time"]

1. d4 {[%clk 0:03:00.9]} 1... Nf6 {[%clk 0:02:59.3]} 2. c4 {[%clk 0:03:01.3]}
2... e6 {[%clk 0:02:59.1]} 3. Nc3 {[%clk 0:03:01.7]} 3... Bb4 {[%clk 0:02:58.4]}
4. Qc2 {[%clk 0:03:02.1]} 4... d5 {[%clk 0:02:55.7]} 5. cxd5 {[%clk 0:03:01.9]}
5... exd5 {[%clk 0:02:54.5]} 6. Bg5 {[%clk 0:03:01.9]} 6... c6 {[%clk
0:02:22.7]} 7. e3 {[%clk 0:03:01]} 7... O-O {[%clk 0:02:18.3]} 8. Bd3 {[%clk
0:03:00.9]} 8... h6 {[%clk 0:02:16.7]} 9. Bh4 {[%clk 0:03:01.2]} 9... Nbd7
{[%clk 0:02:06.3]} 10. Ne2 {[%clk 0:03:01]} 10... b6 {[%clk 0:02:00.8]} 11. f3
{[%clk 0:03:00.2]} 11... Be7 {[%clk 0:01:39.5]} 12. O-O {[%clk 0:02:59.6]} 12...
a5 {[%clk 0:01:27.2]} 13. Rad1 {[%clk 0:02:58.6]} 13... Ba6 {[%clk 0:01:23.9]}
14. h3 {[%clk 0:02:52.2]} 14... Bxd3 {[%clk 0:01:19.4]} 15. Qxd3 {[%clk
0:02:47.6]} 15... b5 {[%clk 0:01:09.6]} 16. Bf2 {[%clk 0:02:19.5]} 16... b4
{[%clk 0:01:03.4]} 17. Na4 {[%clk 0:02:19]} 17... Re8 {[%clk 0:00:55.1]} 18. e4
{[%clk 0:02:17.8]} 18... dxe4 {[%clk 0:00:38.7]} 19. fxe4 {[%clk 0:02:18.7]}
19... Qb8 {[%clk 0:00:37.9]} 20. Qf3 {[%clk 0:02:10.9]} 20... Bf8 {[%clk
0:00:29.2]} 21. Ng3 {[%clk 0:01:55.1]} 21... Qb5 {[%clk 0:00:25]} 22. b3 {[%clk
0:01:54.7]} 22... Rad8 {[%clk 0:00:20.6]} 23. e5 {[%clk 0:01:28.8]} 23... Nd5
{[%clk 0:00:19.2]} 24. Ne4 {[%clk 0:01:26]} 24... Be7 {[%clk 0:00:09.8]} 25. Qg4
{[%clk 0:01:11.4]} 25... Rf8 {[%clk 0:00:08.3]} 26. Kh1 {[%clk 0:00:58.3]} 26...
f5 {[%clk 0:00:08.2]} 27. exf6 {[%clk 0:00:55.8]} 27... N7xf6 {[%clk 0:00:08.9]}
28. Qe6+ {[%clk 0:00:55.7]} 28... Kh8 {[%clk 0:00:07.1]} 29. Ng3 {[%clk
0:00:47.9]} 29... Rde8 {[%clk 0:00:06.4]} 30. Rc1 {[%clk 0:00:38.3]} 30... Bc5
{[%clk 0:00:01.3]} 31. Qf5 {[%clk 0:00:22.4]} 31... Ba7 {[%clk 0:00:01.5]} 32.
Bg1 {[%clk 0:00:16.4]} 32... Ne3 {[%clk 0:00:01.7]} 33. Bxe3 {[%clk 0:00:15.1]}
33... Rxe3 {[%clk 0:00:02.6]} 34. Qf4 {[%clk 0:00:11.3]} 34... Re7 {[%clk
0:00:01.3]} 35. Nf5 {[%clk 0:00:11.2]} 35... Ref7 {[%clk 0:00:01.1]} 36. Nd6
{[%clk 0:00:11.3]} 1-0

[Event "Late-Titled-Tuesday-Blitz-February-13-2024"]
[Site "Chess.com"]
[Date "2024.02.13"]
[Round "5"]
[White "Jamal-Jamal-Jamal"]
[Black "Zq1"]
[Result "0-1"]
[WhiteElo "2267"]
[BlackElo "2497"]
[TimeControl "180+1"]
[EndTime "14:55:51 PST"]
[Termination "Zq1 won by resignation"]

1. d4 {[%clk 0:03:00.9]} 1... Nf6 {[%clk 0:02:59.1]} 2. c4 {[%clk 0:03:00.8]}
2... a6 {[%clk 0:02:59.3]} 3. Nf3 {[%clk 0:03:00.9]} 3... c5 {[%clk 0:02:59.2]}
4. d5 {[%clk 0:02:59.2]} 4... b5 {[%clk 0:02:58.5]} 5. Qc2 {[%clk 0:02:50.7]}
5... d6 {[%clk 0:02:51.2]} 6. Bf4 {[%clk 0:02:44.7]} 6... g6 {[%clk 0:02:48.9]}
7. h3 {[%clk 0:02:43.8]} 7... Bf5 {[%clk 0:02:46.4]} 8. Qd1 {[%clk 0:02:40.8]}
8... Bg7 {[%clk 0:02:39.9]} 9. Nbd2 {[%clk 0:02:36.4]} 9... O-O {[%clk
0:02:27.6]} 10. g4 {[%clk 0:02:36.1]} 10... Bd7 {[%clk 0:02:24.9]} 11. Bg2
{[%clk 0:02:30.7]} 11... a5 {[%clk 0:02:18.7]} 12. O-O {[%clk 0:02:29.2]} 12...
a4 {[%clk 0:02:18.7]} 13. Rc1 {[%clk 0:02:24.5]} 13... Na6 {[%clk 0:02:13.3]}
14. e4 {[%clk 0:02:18.6]} 14... Nb4 {[%clk 0:02:08.2]} 15. Qe2 {[%clk
0:02:02.6]} 15... bxc4 {[%clk 0:02:02.8]} 16. Nxc4 {[%clk 0:01:57.4]} 16... Nxa2
{[%clk 0:02:01.7]} 17. Rcd1 {[%clk 0:01:51.2]} 17... Bb5 {[%clk 0:01:58.7]} 18.
e5 {[%clk 0:01:49.1]} 18... Ne8 {[%clk 0:01:50.2]} 19. e6 {[%clk 0:01:45.9]}
19... f5 {[%clk 0:01:45.6]} 20. Nfd2 {[%clk 0:01:29.6]} 20... fxg4 {[%clk
0:01:41.9]} 21. Qxg4 {[%clk 0:01:30.5]} 21... Nf6 {[%clk 0:01:32.4]} 22. Qh4
{[%clk 0:01:30.7]} 22... Nb4 {[%clk 0:01:14.2]} 23. Bh6 {[%clk 0:01:29.3]} 23...
Bxh6 {[%clk 0:01:07.4]} 24. Qxh6 {[%clk 0:01:30.2]} 24... Nc2 {[%clk 0:01:04.7]}
25. f4 {[%clk 0:00:57.5]} 25... Nd4 {[%clk 0:00:56.8]} 26. f5 {[%clk 0:00:57.5]}
26... Nxf5 {[%clk 0:00:54.1]} 27. Rxf5 {[%clk 0:00:29.1]} 27... gxf5 {[%clk
0:00:53.8]} 28. Qg5+ {[%clk 0:00:29.7]} 28... Kh8 {[%clk 0:00:51.8]} 29. Qxf5
{[%clk 0:00:30.6]} 29... Qe8 {[%clk 0:00:47.8]} 30. Kh1 {[%clk 0:00:19.7]} 30...
Qg6 {[%clk 0:00:47.2]} 31. Qf3 {[%clk 0:00:13.7]} 31... Nh5 {[%clk 0:00:42.4]}
32. Qc3+ {[%clk 0:00:14.2]} 32... Qf6 {[%clk 0:00:30.7]} 33. Qc2 {[%clk
0:00:11.8]} 33... Ng3+ {[%clk 0:00:27.6]} 34. Kh2 {[%clk 0:00:11.5]} 34... Qf4
{[%clk 0:00:25.5]} 35. Kg1 {[%clk 0:00:06.4]} 35... Qf2+ {[%clk 0:00:21.4]} 36.
Kh2 {[%clk 0:00:06.1]} 36... Ne2 {[%clk 0:00:20.4]} 37. Ne4 {[%clk 0:00:04.6]}
37... Qf4+ {[%clk 0:00:17.1]} 38. Kh1 {[%clk 0:00:04.4]} 38... Nd4 {[%clk
0:00:16.1]} 39. Qe2 {[%clk 0:00:01.3]} 0-1

[Event "Late-Titled-Tuesday-Blitz-February-13-2024"]
[Site "Chess.com"]
[Date "2024.02.13"]
[Round "5"]
[White "Jahonas"]
[Black "DanylaBagrov"]
[Result "1/2-1/2"]
[WhiteElo "2384"]
[BlackElo "2555"]
[TimeControl "180+1"]
[EndTime "14:55:52 PST"]
[Termination "Game drawn by repetition"]

1. d4 {[%clk 0:03:00.9]} 1... f5 {[%clk 0:02:49.6]} 2. c4 {[%clk 0:03:00.3]}
2... Nf6 {[%clk 0:02:44.3]} 3. Nc3 {[%clk 0:02:59.9]} 3... g6 {[%clk 0:02:44.7]}
4. Bg5 {[%clk 0:02:58.9]} 4... Bg7 {[%clk 0:02:44.9]} 5. Nf3 {[%clk 0:02:50.4]}
5... O-O {[%clk 0:02:43.8]} 6. h3 {[%clk 0:02:45]} 6... d6 {[%clk 0:02:34.9]} 7.
e3 {[%clk 0:02:39.3]} 7... c6 {[%clk 0:02:23.1]} 8. Be2 {[%clk 0:02:38.1]} 8...
a5 {[%clk 0:02:20.6]} 9. O-O {[%clk 0:02:36.7]} 9... Na6 {[%clk 0:02:20.3]} 10.
a3 {[%clk 0:02:34.8]} 10... Nc7 {[%clk 0:02:20.4]} 11. Qc2 {[%clk 0:02:32]}
11... Be6 {[%clk 0:02:17.9]} 12. b4 {[%clk 0:02:09.4]} 12... axb4 {[%clk
0:02:14.2]} 13. axb4 {[%clk 0:02:08.5]} 13... Qd7 {[%clk 0:01:56.5]} 14. Qb2
{[%clk 0:01:43.7]} 14... b5 {[%clk 0:01:37.1]} 15. Bxf6 {[%clk 0:01:39.9]} 15...
Bxf6 {[%clk 0:01:36.8]} 16. c5 {[%clk 0:01:36.8]} 16... Nd5 {[%clk 0:01:29.1]}
17. Nxd5 {[%clk 0:01:35.8]} 17... Bxd5 {[%clk 0:01:28.3]} 18. Rxa8 {[%clk
0:01:34.9]} 18... Rxa8 {[%clk 0:01:27.8]} 19. Ra1 {[%clk 0:01:35.1]} 19... Qb7
{[%clk 0:01:13.6]} 20. Ra3 {[%clk 0:01:25.1]} 20... dxc5 {[%clk 0:01:12.2]} 21.
bxc5 {[%clk 0:01:24.2]} 21... Rxa3 {[%clk 0:01:11.1]} 22. Qxa3 {[%clk
0:01:23.3]} 22... b4 {[%clk 0:01:07.4]} 23. Qb2 {[%clk 0:01:21.6]} 23... Qb8
{[%clk 0:00:56.2]} 24. Nd2 {[%clk 0:01:14.5]} 24... e5 {[%clk 0:00:54.6]} 25.
Nc4 {[%clk 0:01:08.9]} 25... exd4 {[%clk 0:00:49]} 26. exd4 {[%clk 0:00:50.7]}
26... Qf4 {[%clk 0:00:27.8]} 27. Ne5 {[%clk 0:00:31.8]} 27... Qe4 {[%clk
0:00:13.5]} 28. Bf3 {[%clk 0:00:24.7]} 28... Qe1+ {[%clk 0:00:13.7]} 29. Kh2
{[%clk 0:00:24.2]} 29... Bxe5+ {[%clk 0:00:13.8]} 30. dxe5 {[%clk 0:00:22.8]}
30... Bxf3 {[%clk 0:00:13.7]} 31. gxf3 {[%clk 0:00:22.7]} 31... f4 {[%clk
0:00:11.2]} 32. Kg2 {[%clk 0:00:18.7]} 32... Kf8 {[%clk 0:00:10]} 33. e6 {[%clk
0:00:15]} 33... Qxe6 {[%clk 0:00:08.4]} 34. Qxb4 {[%clk 0:00:14.6]} 34... Qd5
{[%clk 0:00:09.1]} 35. Qb8+ {[%clk 0:00:14.1]} 35... Kg7 {[%clk 0:00:09]} 36.
Qc7+ {[%clk 0:00:13.4]} 36... Kg8 {[%clk 0:00:08.6]} 37. Qb8+ {[%clk 0:00:13]}
37... Kg7 {[%clk 0:00:08.4]} 38. Qc7+ {[%clk 0:00:13.4]} 38... Kg8 {[%clk
0:00:04.1]} 39. Qb8+ {[%clk 0:00:13.3]} 39... Kg7 {[%clk 0:00:03.3]} 1/2-1/2

[Event "Late-Titled-Tuesday-Blitz-February-13-2024"]
[Site "Chess.com"]
[Date "2024.02.13"]
[Round "5"]
[White "vi_pranav"]
[Black "TenisMaster"]
[Result "1-0"]
[WhiteElo "3053"]
[BlackElo "2930"]
[TimeControl "180+1"]
[EndTime "14:55:53 PST"]
[Termination "vi_pranav won by resignation"]

1. e4 {[%clk 0:03:00.9]} 1... d5 {[%clk 0:02:56.6]} 2. exd5 {[%clk 0:02:59.8]}
2... Qxd5 {[%clk 0:02:57.5]} 3. Nc3 {[%clk 0:03:00.3]} 3... Qa5 {[%clk
0:02:57.8]} 4. d4 {[%clk 0:03:00.6]} 4... Nf6 {[%clk 0:02:58.3]} 5. Nf3 {[%clk
0:03:00.4]} 5... Bf5 {[%clk 0:02:58.6]} 6. Bc4 {[%clk 0:02:59.1]} 6... e6 {[%clk
0:02:58.5]} 7. Bd2 {[%clk 0:02:59]} 7... Bb4 {[%clk 0:02:58.7]} 8. O-O {[%clk
0:02:57]} 8... Nc6 {[%clk 0:02:57.8]} 9. a3 {[%clk 0:02:42.4]} 9... Bxc3 {[%clk
0:02:57.9]} 10. Bxc3 {[%clk 0:02:43.3]} 10... Qb6 {[%clk 0:02:58]} 11. b4 {[%clk
0:02:15.9]} 11... a6 {[%clk 0:02:57.6]} 12. Qe2 {[%clk 0:01:59.3]} 12... O-O
{[%clk 0:02:56.8]} 13. h3 {[%clk 0:01:58.1]} 13... Rad8 {[%clk 0:02:56.1]} 14.
Rfd1 {[%clk 0:01:54.5]} 14... Rd7 {[%clk 0:02:40.5]} 15. Ne5 {[%clk 0:01:44.2]}
15... Nxe5 {[%clk 0:02:35.7]} 16. dxe5 {[%clk 0:01:43.9]} 16... Nd5 {[%clk
0:02:35.7]} 17. Bxd5 {[%clk 0:01:42.5]} 17... Rxd5 {[%clk 0:02:32.3]} 18. Rxd5
{[%clk 0:01:41.9]} 18... exd5 {[%clk 0:02:33.2]} 19. Rd1 {[%clk 0:01:42.3]}
19... Qg6 {[%clk 0:02:28.4]} 20. g4 {[%clk 0:01:26.7]} 20... Bxc2 {[%clk
0:02:24.9]} 21. Rxd5 {[%clk 0:01:25.9]} 21... Qc6 {[%clk 0:02:02.6]} 22. Rc5
{[%clk 0:01:19.5]} 22... Qg6 {[%clk 0:02:02.5]} 23. Rxc7 {[%clk 0:01:16.3]}
23... Be4 {[%clk 0:02:01.5]} 24. Qc4 {[%clk 0:01:11.5]} 24... Bc6 {[%clk
0:01:58.1]} 25. Qe2 {[%clk 0:00:36]} 25... Qe6 {[%clk 0:01:50]} 26. Kh2 {[%clk
0:00:31.5]} 26... Rd8 {[%clk 0:01:47.7]} 27. f3 {[%clk 0:00:22.9]} 27... h6
{[%clk 0:01:47]} 28. Kg3 {[%clk 0:00:22.8]} 28... h5 {[%clk 0:01:39.9]} 29. Qe3
{[%clk 0:00:19.2]} 29... Rd1 {[%clk 0:01:21.8]} 30. Qe2 {[%clk 0:00:12.6]} 30...
Rg1+ {[%clk 0:01:19.5]} 31. Kh2 {[%clk 0:00:10.7]} 31... Rc1 {[%clk 0:01:13.2]}
32. Qd2 {[%clk 0:00:08.5]} 32... Rf1 {[%clk 0:01:10.5]} 33. Qd8+ {[%clk
0:00:07.6]} 33... Kh7 {[%clk 0:01:10.5]} 34. Rc8 {[%clk 0:00:08.2]} 34... Qa2+
{[%clk 0:01:06.1]} 35. Bd2 {[%clk 0:00:05.2]} 35... Rf2+ {[%clk 0:01:02]} 36.
Kg3 {[%clk 0:00:05.4]} 36... Rxf3+ {[%clk 0:00:31.5]} 37. Kh4 {[%clk 0:00:05]}
37... Rxh3+ {[%clk 0:00:28.2]} 38. Kxh3 {[%clk 0:00:05.2]} 38... hxg4+ {[%clk
0:00:28.4]} 39. Kh4 {[%clk 0:00:05.4]} 39... Kg6 {[%clk 0:00:24.9]} 40. Qg5+
{[%clk 0:00:05.4]} 1-0